[Event "Early-Titled-Tuesday-Blitz-July-09-2024"]
[Site "Chess.com"]
[Date "2024.07.09"]
[Round "8"]
[White "IC3S2"]
[Black "BashirovKemal"]
[Result "0-1"]
[WhiteElo "2541"]
[BlackElo "2680"]
[TimeControl "180+1"]
[EndTime "9:29:19 PDT"]
[Termination "BashirovKemal won by checkmate"]

1. e4 {[%clk 0:03:00.9]} 1... e5 {[%clk 0:02:59.8]} 2. Nf3 {[%clk 0:03:00.7]}
2... Nf6 {[%clk 0:03:00]} 3. Nxe5 {[%clk 0:03:00.2]} 3... d6 {[%clk 0:03:00.3]}
4. Nf3 {[%clk 0:03:00.6]} 4... Nxe4 {[%clk 0:03:00.6]} 5. Nc3 {[%clk 0:03:01]}
5... Nf6 {[%clk 0:03:00.7]} 6. d4 {[%clk 0:02:59.1]} 6... d5 {[%clk 0:03:01.2]}
7. Bg5 {[%clk 0:02:56.6]} 7... Be7 {[%clk 0:03:01.5]} 8. Bd3 {[%clk 0:02:56.3]}
8... O-O {[%clk 0:03:01.8]} 9. O-O {[%clk 0:02:56.5]} 9... c6 {[%clk 0:03:01.9]}
10. Re1 {[%clk 0:02:56.9]} 10... Bg4 {[%clk 0:03:00.9]} 11. h3 {[%clk
0:02:56.6]} 11... Bh5 {[%clk 0:03:00.6]} 12. g4 {[%clk 0:02:51.3]} 12... Bg6
{[%clk 0:02:58.5]} 13. Bxg6 {[%clk 0:02:49.2]} 13... hxg6 {[%clk 0:02:59.4]} 14.
Ne5 {[%clk 0:02:48.9]} 14... Nbd7 {[%clk 0:02:57]} 15. Qf3 {[%clk 0:02:47.1]}
15... Nxe5 {[%clk 0:02:48.8]} 16. dxe5 {[%clk 0:02:46.8]} 16... Nd7 {[%clk
0:02:49.2]} 17. Bf4 {[%clk 0:02:40.6]} 17... Nc5 {[%clk 0:02:47.5]} 18. Rad1
{[%clk 0:02:37.6]} 18... Ne6 {[%clk 0:02:46.4]} 19. Bg3 {[%clk 0:02:37.3]} 19...
Qb6 {[%clk 0:02:42.3]} 20. b3 {[%clk 0:02:31.2]} 20... Rad8 {[%clk 0:02:35.5]}
21. Kh2 {[%clk 0:02:27.6]} 21... Bb4 {[%clk 0:02:28.5]} 22. Rh1 {[%clk
0:02:19.5]} 22... Qc5 {[%clk 0:02:21]} 23. Nb1 {[%clk 0:01:40.8]} 23... Ng5
{[%clk 0:02:12.9]} 24. Qe2 {[%clk 0:01:34.8]} 24... Ne4 {[%clk 0:02:09.2]} 25.
a3 {[%clk 0:01:34.6]} 25... Bxa3 {[%clk 0:02:05.5]} 26. Nxa3 {[%clk 0:01:34]}
26... Qxa3 {[%clk 0:02:06.4]} 27. Bf4 {[%clk 0:01:31.9]} 27... g5 {[%clk
0:02:03.6]} 28. Bc1 {[%clk 0:01:27.8]} 28... Qe7 {[%clk 0:02:01.5]} 29. Bb2
{[%clk 0:01:23.8]} 29... a5 {[%clk 0:01:59.4]} 30. f3 {[%clk 0:01:23.3]} 30...
Nc5 {[%clk 0:01:58]} 31. Ba3 {[%clk 0:01:17.4]} 31... b5 {[%clk 0:01:56.7]} 32.
Kg2 {[%clk 0:01:02.1]} 32... b4 {[%clk 0:01:55.9]} 33. Bc1 {[%clk 0:01:02.5]}
33... Ne6 {[%clk 0:01:48.2]} 34. Qa6 {[%clk 0:00:58.1]} 34... Qc5 {[%clk
0:01:43.7]} 35. Qd3 {[%clk 0:00:55.5]} 35... Rfe8 {[%clk 0:01:41.2]} 36. h4
{[%clk 0:00:54.5]} 36... Nf4+ {[%clk 0:01:36.6]} 37. Bxf4 {[%clk 0:00:55]} 37...
gxf4 {[%clk 0:01:37.5]} 38. Rhe1 {[%clk 0:00:53.6]} 38... Ra8 {[%clk 0:01:31.1]}
39. h5 {[%clk 0:00:47.5]} 39... a4 {[%clk 0:01:27]} 40. bxa4 {[%clk 0:00:42.7]}
40... Rxa4 {[%clk 0:01:27.9]} 41. Re2 {[%clk 0:00:42.8]} 41... Ra2 {[%clk
0:01:20.7]} 42. g5 {[%clk 0:00:33.8]} 42... d4 {[%clk 0:01:11.5]} 43. Qe4 {[%clk
0:00:20.6]} 43... b3 {[%clk 0:01:06.5]} 44. cxb3 {[%clk 0:00:10.1]} 44... Rxe2+
{[%clk 0:01:07.4]} 45. Qxe2 {[%clk 0:00:10.3]} 45... Rxe5 {[%clk 0:01:05.8]} 46.
Qd3 {[%clk 0:00:10.1]} 46... Rxg5+ {[%clk 0:01:06]} 47. Kf2 {[%clk 0:00:10.6]}
47... Rxh5 {[%clk 0:01:04.6]} 48. Qxd4 {[%clk 0:00:11]} 48... Rh2+ {[%clk
0:01:03.1]} 49. Kg1 {[%clk 0:00:07]} 49... Qh5 {[%clk 0:00:57.3]} 50. Qd8+
{[%clk 0:00:06.5]} 50... Kh7 {[%clk 0:00:57.9]} 51. Qd3+ {[%clk 0:00:07.1]}
51... g6 {[%clk 0:00:58.4]} 52. Re1 {[%clk 0:00:02.1]} 52... Rh1+ {[%clk
0:00:58]} 53. Kf2 {[%clk 0:00:02.3]} 53... Qh2# {[%clk 0:00:58.4]} 0-1

[Event "Early-Titled-Tuesday-Blitz-July-09-2024"]
[Site "Chess.com"]
[Date "2024.07.09"]
[Round "8"]
[White "Antek_Radzimski"]
[Black "ArmanGhevondyanchess"]
[Result "0-1"]
[WhiteElo "2578"]
[BlackElo "2750"]
[TimeControl "180+1"]
[EndTime "9:29:23 PDT"]
[Termination "ArmanGhevondyanchess won by resignation"]

1. e4 {[%clk 0:03:00.3]} 1... c5 {[%clk 0:02:59.6]} 2. Nf3 {[%clk 0:03:00.2]}
2... Nc6 {[%clk 0:02:59.3]} 3. d4 {[%clk 0:03:00.5]} 3... cxd4 {[%clk
0:02:58.1]} 4. Nxd4 {[%clk 0:03:01.4]} 4... g6 {[%clk 0:02:55.9]} 5. c4 {[%clk
0:03:00.2]} 5... Bg7 {[%clk 0:02:54.6]} 6. Be3 {[%clk 0:03:00.8]} 6... Nf6
{[%clk 0:02:54.3]} 7. Nc3 {[%clk 0:03:00.6]} 7... O-O {[%clk 0:02:54.1]} 8. Be2
{[%clk 0:03:01]} 8... d6 {[%clk 0:02:54.2]} 9. O-O {[%clk 0:03:01.2]} 9... Nxd4
{[%clk 0:02:53.7]} 10. Bxd4 {[%clk 0:03:01.2]} 10... a5 {[%clk 0:02:53.9]} 11.
b3 {[%clk 0:02:56.9]} 11... Bd7 {[%clk 0:02:47.8]} 12. Nd5 {[%clk 0:02:55.9]}
12... Nxd5 {[%clk 0:02:46.4]} 13. Bxg7 {[%clk 0:02:51.5]} 13... Ne3 {[%clk
0:02:37.2]} 14. Qd4 {[%clk 0:02:20]} 14... Nc2 {[%clk 0:02:24.2]} 15. Qb2 {[%clk
0:02:17.1]} 15... Nxa1 {[%clk 0:02:21.9]} 16. Bxf8 {[%clk 0:02:17.3]} 16... Qxf8
{[%clk 0:02:20.8]} 17. Rxa1 {[%clk 0:02:15]} 17... Qg7 {[%clk 0:02:18.7]} 18.
Qxg7+ {[%clk 0:02:10.4]} 18... Kxg7 {[%clk 0:02:19.2]} 19. Rd1 {[%clk
0:02:10.6]} 19... Bc6 {[%clk 0:02:18.2]} 20. f3 {[%clk 0:02:09.5]} 20... Rb8
{[%clk 0:02:09.9]} 21. a4 {[%clk 0:02:08.6]} 21... Kf6 {[%clk 0:01:54.3]} 22.
Kf2 {[%clk 0:02:08.2]} 22... g5 {[%clk 0:01:53.8]} 23. Ke3 {[%clk 0:02:08]}
23... h5 {[%clk 0:01:48.8]} 24. h4 {[%clk 0:02:00.9]} 24... gxh4 {[%clk
0:01:44.7]} 25. Rh1 {[%clk 0:02:00.3]} 25... Rg8 {[%clk 0:01:40.1]} 26. Bf1
{[%clk 0:01:40.2]} 26... Kg5 {[%clk 0:01:34.4]} 27. Rh3 {[%clk 0:01:17.8]} 27...
Bd7 {[%clk 0:01:31.8]} 28. f4+ {[%clk 0:01:07.8]} 28... Kh6 {[%clk 0:01:16.2]}
29. Rxh4 {[%clk 0:00:58.6]} 29... Rg3+ {[%clk 0:01:16.2]} 30. Kd4 {[%clk
0:00:57.9]} 30... Bg4 {[%clk 0:01:04.8]} 31. Bd3 {[%clk 0:00:29.8]} 31... e5+
{[%clk 0:01:02.2]} 32. fxe5 {[%clk 0:00:30.2]} 32... dxe5+ {[%clk 0:01:03.1]}
33. Kc3 {[%clk 0:00:30.6]} 33... Be2 {[%clk 0:01:02.3]} 34. Rh3 {[%clk
0:00:30.5]} 34... Rxg2 {[%clk 0:00:46.4]} 35. Bxe2 {[%clk 0:00:29.9]} 35... Rxe2
{[%clk 0:00:46.3]} 36. Rf3 {[%clk 0:00:30.4]} 36... h4 {[%clk 0:00:35.3]} 37.
Rxf7 {[%clk 0:00:29.6]} 37... h3 {[%clk 0:00:33.7]} 38. Rf3 {[%clk 0:00:21.2]}
38... h2 {[%clk 0:00:33.9]} 39. Rh3+ {[%clk 0:00:20.5]} 39... Kg5 {[%clk
0:00:33.9]} 40. Kd3 {[%clk 0:00:20.6]} 40... Rb2 {[%clk 0:00:32.1]} 41. Kc3
{[%clk 0:00:19.2]} 41... Rg2 {[%clk 0:00:31.1]} 42. c5 {[%clk 0:00:17.6]} 42...
Kg4 {[%clk 0:00:31.3]} 43. Rh8 {[%clk 0:00:17.7]} 43... Rg3+ {[%clk 0:00:31.5]}
44. Kc4 {[%clk 0:00:17.7]} 44... Rh3 {[%clk 0:00:32.4]} 45. Rg8+ {[%clk
0:00:17.5]} 45... Kf3 {[%clk 0:00:32.7]} 46. Rf8+ {[%clk 0:00:17.9]} 46... Ke2
{[%clk 0:00:32.7]} 0-1

[Event "Early-Titled-Tuesday-Blitz-July-09-2024"]
[Site "Chess.com"]
[Date "2024.07.09"]
[Round "8"]
[White "ManMish2"]
[Black "temus_galaktionov"]
[Result "0-1"]
[WhiteElo "2606"]
[BlackElo "2839"]
[TimeControl "180+1"]
[EndTime "9:29:25 PDT"]
[Termination "temus_galaktionov won by checkmate"]

1. e4 {[%clk 0:03:00.9]} 1... c6 {[%clk 0:03:00.9]} 2. d4 {[%clk 0:02:59.4]}
2... d5 {[%clk 0:03:01.3]} 3. Nc3 {[%clk 0:02:59.1]} 3... dxe4 {[%clk
0:03:01.3]} 4. Nxe4 {[%clk 0:02:59.9]} 4... Nf6 {[%clk 0:03:01.4]} 5. Nxf6+
{[%clk 0:02:59.8]} 5... exf6 {[%clk 0:03:02.3]} 6. c3 {[%clk 0:03:00]} 6... Bd6
{[%clk 0:03:02.9]} 7. Bd3 {[%clk 0:02:58.9]} 7... O-O {[%clk 0:03:03.1]} 8. Qc2
{[%clk 0:02:59.5]} 8... Re8+ {[%clk 0:03:03.2]} 9. Ne2 {[%clk 0:03:00.1]} 9...
h5 {[%clk 0:03:03.2]} 10. O-O {[%clk 0:03:00.8]} 10... h4 {[%clk 0:03:03.3]} 11.
h3 {[%clk 0:03:01.4]} 11... Nd7 {[%clk 0:03:03.1]} 12. Bd2 {[%clk 0:03:01.9]}
12... Nf8 {[%clk 0:03:02.4]} 13. Rae1 {[%clk 0:03:02.5]} 13... Qc7 {[%clk
0:02:54]} 14. c4 {[%clk 0:02:57.8]} 14... c5 {[%clk 0:02:52.7]} 15. dxc5 {[%clk
0:02:45.2]} 15... Bxc5 {[%clk 0:02:52.7]} 16. b4 {[%clk 0:02:44.8]} 16... Be7
{[%clk 0:02:48]} 17. Nf4 {[%clk 0:02:39.4]} 17... Be6 {[%clk 0:02:44.3]} 18. c5
{[%clk 0:02:27]} 18... Red8 {[%clk 0:02:31.3]} 19. Nxe6 {[%clk 0:02:25.2]} 19...
Nxe6 {[%clk 0:02:31.3]} 20. Bc4 {[%clk 0:02:25.8]} 20... Nd4 {[%clk 0:02:30.1]}
21. Qg6 {[%clk 0:02:08.1]} 21... Bf8 {[%clk 0:02:30.3]} 22. Re4 {[%clk
0:01:49.2]} 22... Ne6 {[%clk 0:02:10.4]} 23. Rxe6 {[%clk 0:00:42.5]} 23... fxg6
{[%clk 0:02:07.7]} 24. Re7+ {[%clk 0:00:35.7]} 24... Kh7 {[%clk 0:02:06.6]} 25.
Rxc7 {[%clk 0:00:36.2]} 25... Rxd2 {[%clk 0:02:06.3]} 26. Rxb7 {[%clk
0:00:36.7]} 26... a5 {[%clk 0:02:01.9]} 27. a3 {[%clk 0:00:35.2]} 27... axb4
{[%clk 0:01:58.9]} 28. axb4 {[%clk 0:00:36.1]} 28... Ra4 {[%clk 0:01:42.7]} 29.
Bb3 {[%clk 0:00:33.6]} 29... Ra3 {[%clk 0:01:42.7]} 30. Be6 {[%clk 0:00:31.4]}
30... Rc3 {[%clk 0:01:37.1]} 31. Rb8 {[%clk 0:00:04.5]} 31... Be7 {[%clk
0:01:27.8]} 32. Re1 {[%clk 0:00:05]} 32... Bd8 {[%clk 0:01:22.2]} 33. Bf7 {[%clk
0:00:04.6]} 33... Bc7 {[%clk 0:01:17.9]} 34. Rc8 {[%clk 0:00:04.1]} 34... Be5
{[%clk 0:01:15.7]} 35. Kf1 {[%clk 0:00:02.3]} 35... Rcc2 {[%clk 0:01:14.8]} 36.
Bg8+ {[%clk 0:00:02.7]} 36... Kh6 {[%clk 0:01:14.8]} 37. Bd5 {[%clk 0:00:02.5]}
37... Rxd5 {[%clk 0:01:14.3]} 38. f4 {[%clk 0:00:02.5]} 38... Bxf4 {[%clk
0:01:13.4]} 39. Re4 {[%clk 0:00:03.1]} 39... Rd1+ {[%clk 0:01:10]} 40. Re1
{[%clk 0:00:03.7]} 40... Rdd2 {[%clk 0:01:10.2]} 41. c6 {[%clk 0:00:03.4]} 41...
Rf2+ {[%clk 0:01:08.9]} 42. Kg1 {[%clk 0:00:03.7]} 42... Rxg2+ {[%clk
0:01:09.7]} 43. Kh1 {[%clk 0:00:03.9]} 43... Rh2+ {[%clk 0:01:09.7]} 44. Kg1
{[%clk 0:00:04.3]} 44... Bg3 {[%clk 0:00:57.8]} 45. Rd1 {[%clk 0:00:02.2]} 45...
Bf4 {[%clk 0:00:48.2]} 46. b5 {[%clk 0:00:01.4]} 46... Be3+ {[%clk 0:00:47.5]}
47. Kf1 {[%clk 0:00:02.3]} 47... Rh1# {[%clk 0:00:48.1]} 0-1

[Event "Early-Titled-Tuesday-Blitz-July-09-2024"]
[Site "Chess.com"]
[Date "2024.07.09"]
[Round "8"]
[White "JunjiCol"]
[Black "CristhianPortalR"]
[Result "1-0"]
[WhiteElo "2373"]
[BlackElo "2498"]
[TimeControl "180+1"]
[EndTime "9:29:26 PDT"]
[Termination "JunjiCol won on time"]

1. e4 {[%clk 0:03:00.9]} 1... c5 {[%clk 0:02:59.6]} 2. Nf3 {[%clk 0:02:56.8]}
2... d6 {[%clk 0:03:00]} 3. Bb5+ {[%clk 0:02:54.7]} 3... Nd7 {[%clk 0:02:59.8]}
4. a4 {[%clk 0:02:52.3]} 4... Nf6 {[%clk 0:02:59.5]} 5. Nc3 {[%clk 0:02:49.8]}
5... g6 {[%clk 0:02:58.1]} 6. O-O {[%clk 0:02:49.5]} 6... Bg7 {[%clk 0:02:58.6]}
7. d4 {[%clk 0:02:42]} 7... cxd4 {[%clk 0:02:59.5]} 8. Qxd4 {[%clk 0:02:40.7]}
8... O-O {[%clk 0:02:59.6]} 9. Bg5 {[%clk 0:02:39.1]} 9... Nc5 {[%clk
0:02:58.7]} 10. e5 {[%clk 0:02:34.2]} 10... Ne6 {[%clk 0:02:53.5]} 11. Qe3
{[%clk 0:02:08.6]} 11... Ng4 {[%clk 0:00:24.2]} 12. Qe2 {[%clk 0:02:03.7]} 12...
Nxg5 {[%clk 0:00:16]} 13. Nxg5 {[%clk 0:01:45.7]} 13... Nxe5 {[%clk 0:00:16]}
14. Rad1 {[%clk 0:01:43.7]} 14... e6 {[%clk 0:00:15.8]} 15. Nge4 {[%clk
0:01:40.3]} 15... d5 {[%clk 0:00:16.1]} 16. Ng3 {[%clk 0:01:37.7]} 16... Nc6
{[%clk 0:00:16.3]} 17. Rfe1 {[%clk 0:01:31.5]} 17... Nd4 {[%clk 0:00:16.4]} 18.
Qd3 {[%clk 0:01:28.7]} 18... Nxb5 {[%clk 0:00:16.6]} 19. Nxb5 {[%clk 0:01:28.6]}
19... Bd7 {[%clk 0:00:17.1]} 20. c4 {[%clk 0:01:18]} 20... a6 {[%clk 0:00:14.8]}
21. Nc3 {[%clk 0:01:16]} 21... d4 {[%clk 0:00:15]} 22. Nce2 {[%clk 0:01:14.3]}
22... e5 {[%clk 0:00:15.2]} 23. b3 {[%clk 0:01:12.5]} 23... f5 {[%clk
0:00:14.2]} 24. Qd2 {[%clk 0:01:10.3]} 24... f4 {[%clk 0:00:11.3]} 25. Ne4
{[%clk 0:01:10]} 25... Bc6 {[%clk 0:00:11.4]} 26. Nc1 {[%clk 0:01:08.5]} 26...
Qd7 {[%clk 0:00:10.4]} 27. Nd3 {[%clk 0:01:08]} 27... f3 {[%clk 0:00:10.6]} 28.
Qg5 {[%clk 0:00:58.9]} 28... fxg2 {[%clk 0:00:09.8]} 29. Nxe5 {[%clk 0:00:55.5]}
29... Qh3 {[%clk 0:00:07.1]} 30. Rd3 {[%clk 0:00:42.6]} 30... Qf5 {[%clk
0:00:06.1]} 31. Qxf5 {[%clk 0:00:34.9]} 31... gxf5 {[%clk 0:00:06.1]} 32. Ng3
{[%clk 0:00:29]} 32... Rae8 {[%clk 0:00:04.6]} 33. f4 {[%clk 0:00:28.9]} 33...
Bh6 {[%clk 0:00:03.7]} 34. Nh5 {[%clk 0:00:27.7]} 34... Be4 {[%clk 0:00:02]} 35.
Rxd4 {[%clk 0:00:27.7]} 35... Bxf4 {[%clk 0:00:01.7]} 36. Nxf4 {[%clk
0:00:28.6]} 36... Rxe5 {[%clk 0:00:02.2]} 37. Rd7 {[%clk 0:00:29]} 1-0

[Event "Early-Titled-Tuesday-Blitz-July-09-2024"]
[Site "Chess.com"]
[Date "2024.07.09"]
[Round "8"]
[White "ccccvhhhj"]
[Black "nicolochessit"]
[Result "0-1"]
[WhiteElo "2502"]
[BlackElo "2396"]
[TimeControl "180+1"]
[EndTime "9:29:29 PDT"]
[Termination "nicolochessit won on time"]

1. e4 {[%clk 0:02:55.5]} 1... g6 {[%clk 0:02:59.2]} 2. d4 {[%clk 0:02:55.3]}
2... Bg7 {[%clk 0:03:00.1]} 3. Nc3 {[%clk 0:02:55.9]} 3... c6 {[%clk 0:03:00.6]}
4. Be3 {[%clk 0:02:56.6]} 4... d5 {[%clk 0:03:01.1]} 5. f3 {[%clk 0:02:56.5]}
5... b5 {[%clk 0:02:59.3]} 6. Qd2 {[%clk 0:02:55.4]} 6... b4 {[%clk 0:02:59.4]}
7. Nce2 {[%clk 0:02:54.3]} 7... a5 {[%clk 0:03:00]} 8. g4 {[%clk 0:02:48.4]}
8... dxe4 {[%clk 0:02:58.1]} 9. fxe4 {[%clk 0:02:48.5]} 9... Bxg4 {[%clk
0:02:56.7]} 10. O-O-O {[%clk 0:02:48.3]} 10... Nf6 {[%clk 0:02:52.7]} 11. Bg2
{[%clk 0:02:47]} 11... Na6 {[%clk 0:02:38.1]} 12. Bh6 {[%clk 0:02:42.3]} 12...
Bxh6 {[%clk 0:02:31.6]} 13. Qxh6 {[%clk 0:02:43.2]} 13... a4 {[%clk 0:02:32.3]}
14. d5 {[%clk 0:01:54.8]} 14... b3 {[%clk 0:02:19.1]} 15. cxb3 {[%clk
0:01:51.3]} 15... axb3 {[%clk 0:02:20]} 16. a3 {[%clk 0:01:52.2]} 16... cxd5
{[%clk 0:02:15.3]} 17. Kb1 {[%clk 0:01:41.9]} 17... Rc8 {[%clk 0:01:16.2]} 18.
e5 {[%clk 0:00:58.3]} 18... Qc7 {[%clk 0:01:15.4]} 19. Nc3 {[%clk 0:00:44.3]}
19... Qxe5 {[%clk 0:01:04]} 20. Nf3 {[%clk 0:00:35.8]} 20... Bxf3 {[%clk
0:00:53.6]} 21. Bxf3 {[%clk 0:00:36.7]} 21... Qf5+ {[%clk 0:00:43]} 22. Ka1
{[%clk 0:00:37.1]} 22... Qxf3 {[%clk 0:00:42.5]} 23. Rhf1 {[%clk 0:00:37.7]}
23... Qh5 {[%clk 0:00:31.4]} 24. Qe3 {[%clk 0:00:28.5]} 24... O-O {[%clk
0:00:16.5]} 25. Qxe7 {[%clk 0:00:29]} 25... Rc6 {[%clk 0:00:12.9]} 26. Rxf6
{[%clk 0:00:06.6]} 26... Rxc3 {[%clk 0:00:12.3]} 27. Rff1 {[%clk 0:00:02.9]}
27... Rc2 {[%clk 0:00:11.4]} 28. Qd6 {[%clk 0:00:01.7]} 28... Nc5 {[%clk
0:00:07.6]} 29. Rxd5 {[%clk 0:00:01]} 29... Qe2 {[%clk 0:00:06.4]} 30. Rb1
{[%clk 0:00:01]} 30... Na4 {[%clk 0:00:05.1]} 0-1

[Event "Early-Titled-Tuesday-Blitz-July-09-2024"]
[Site "Chess.com"]
[Date "2024.07.09"]
[Round "8"]
[White "zverr1"]
[Black "Payyappat"]
[Result "1-0"]
[WhiteElo "2544"]
[BlackElo "2411"]
[TimeControl "180+1"]
[EndTime "9:29:30 PDT"]
[Termination "zverr1 won by resignation"]

1. e4 {[%clk 0:02:58.1]} 1... c6 {[%clk 0:02:58.8]} 2. d4 {[%clk 0:02:57]} 2...
d5 {[%clk 0:02:59.7]} 3. Nc3 {[%clk 0:02:56.9]} 3... dxe4 {[%clk 0:03:00]} 4.
Nxe4 {[%clk 0:02:57.8]} 4... Nf6 {[%clk 0:03:00.9]} 5. Nxf6+ {[%clk 0:02:54.8]}
5... exf6 {[%clk 0:03:01.8]} 6. Bc4 {[%clk 0:02:55.3]} 6... Na6 {[%clk
0:02:50.3]} 7. Nf3 {[%clk 0:02:53.1]} 7... Nc7 {[%clk 0:02:50.1]} 8. Bf4 {[%clk
0:02:51.3]} 8... Nd5 {[%clk 0:02:47.9]} 9. Qe2+ {[%clk 0:02:49.6]} 9... Be6
{[%clk 0:02:47.8]} 10. Bd2 {[%clk 0:02:47]} 10... Qb6 {[%clk 0:02:43.3]} 11. O-O
{[%clk 0:02:39.3]} 11... Be7 {[%clk 0:02:31.4]} 12. Bb3 {[%clk 0:02:13.9]} 12...
O-O {[%clk 0:02:30]} 13. c4 {[%clk 0:02:13.1]} 13... Nc7 {[%clk 0:02:17.1]} 14.
d5 {[%clk 0:02:10.3]} 14... cxd5 {[%clk 0:02:15.7]} 15. cxd5 {[%clk 0:02:11.2]}
15... Nxd5 {[%clk 0:02:03]} 16. Bxd5 {[%clk 0:02:11.1]} 16... Bxd5 {[%clk
0:02:03.9]} 17. Qxe7 {[%clk 0:02:11.8]} 17... Bxf3 {[%clk 0:02:04.1]} 18. gxf3
{[%clk 0:02:12.7]} 18... Qxb2 {[%clk 0:01:55.8]} 19. Qb4 {[%clk 0:02:01.5]}
19... Qe5 {[%clk 0:01:46.5]} 20. Qe4 {[%clk 0:02:00.4]} 20... Rad8 {[%clk
0:01:35.7]} 21. Qxe5 {[%clk 0:01:56.9]} 21... fxe5 {[%clk 0:01:35.7]} 22. Be3
{[%clk 0:01:57.6]} 22... a6 {[%clk 0:01:31.9]} 23. Rfd1 {[%clk 0:01:56.9]} 23...
f6 {[%clk 0:01:30.2]} 24. Rac1 {[%clk 0:01:54.7]} 24... h5 {[%clk 0:01:09.8]}
25. f4 {[%clk 0:01:54.1]} 25... e4 {[%clk 0:01:04.6]} 26. Kg2 {[%clk 0:01:45.5]}
26... Rxd1 {[%clk 0:01:01.9]} 27. Rxd1 {[%clk 0:01:45.4]} 27... Rf7 {[%clk
0:00:57.6]} 28. f5 {[%clk 0:01:42.1]} 28... Rc7 {[%clk 0:00:52.5]} 29. Kg3
{[%clk 0:01:41.6]} 29... Rc2 {[%clk 0:00:49.8]} 30. Rd2 {[%clk 0:01:41.5]} 30...
Rc4 {[%clk 0:00:41.6]} 31. Kf4 {[%clk 0:01:39.4]} 31... Kh7 {[%clk 0:00:39.6]}
32. Rd4 {[%clk 0:01:32.9]} 32... Rc2 {[%clk 0:00:38.9]} 33. a4 {[%clk
0:01:33.2]} 33... Rb2 {[%clk 0:00:29.2]} 34. Kxe4 {[%clk 0:01:30.8]} 34... b5
{[%clk 0:00:29.1]} 35. axb5 {[%clk 0:01:24.6]} 35... axb5 {[%clk 0:00:30]} 36.
Rd7 {[%clk 0:01:24.3]} 36... b4 {[%clk 0:00:24.7]} 37. Bd4 {[%clk 0:01:24.2]}
37... Re2+ {[%clk 0:00:23.9]} 38. Kf3 {[%clk 0:01:24.5]} 38... Rd2 {[%clk
0:00:22]} 39. Ke3 {[%clk 0:01:25.2]} 39... Rd1 {[%clk 0:00:22.1]} 40. Ke2 {[%clk
0:01:25.9]} 40... Rg1 {[%clk 0:00:17.9]} 41. Bxf6 {[%clk 0:01:25.7]} 41... b3
{[%clk 0:00:18.1]} 42. Be5 {[%clk 0:01:22.3]} 42... Rg5 {[%clk 0:00:16.7]} 43.
f4 {[%clk 0:00:58.8]} 43... Rxf5 {[%clk 0:00:14.4]} 44. Rxg7+ {[%clk 0:00:58.6]}
44... Kh6 {[%clk 0:00:14.4]} 45. Rb7 {[%clk 0:00:58.6]} 45... h4 {[%clk
0:00:11]} 46. Rxb3 {[%clk 0:00:57.3]} 46... Kh5 {[%clk 0:00:11.3]} 47. Kf3
{[%clk 0:00:57.3]} 47... Rf8 {[%clk 0:00:09.9]} 48. Ke4 {[%clk 0:00:55.6]} 48...
Rg8 {[%clk 0:00:07.8]} 49. Kf5 {[%clk 0:00:54.1]} 49... Rg2 {[%clk 0:00:07.5]}
50. Rb7 {[%clk 0:00:53.5]} 1-0

[Event "Early-Titled-Tuesday-Blitz-July-09-2024"]
[Site "Chess.com"]
[Date "2024.07.09"]
[Round "8"]
[White "Resignify"]
[Black "Chernov_Alexander_A"]
[Result "0-1"]
[WhiteElo "2250"]
[BlackElo "2273"]
[TimeControl "180+1"]
[EndTime "9:29:30 PDT"]
[Termination "Chernov_Alexander_A won on time"]

1. e4 {[%clk 0:03:00.9]} 1... e5 {[%clk 0:02:58.9]} 2. Nf3 {[%clk 0:02:57.9]}
2... Nc6 {[%clk 0:02:58.8]} 3. Bb5 {[%clk 0:02:58.1]} 3... Bc5 {[%clk
0:02:58.7]} 4. c3 {[%clk 0:02:57.8]} 4... Nf6 {[%clk 0:02:58.1]} 5. d3 {[%clk
0:02:51.8]} 5... O-O {[%clk 0:02:56.9]} 6. O-O {[%clk 0:02:51.2]} 6... d5 {[%clk
0:02:56.9]} 7. Nbd2 {[%clk 0:02:37.7]} 7... dxe4 {[%clk 0:02:55.9]} 8. dxe4
{[%clk 0:02:38.6]} 8... Qe7 {[%clk 0:02:55.8]} 9. Qe2 {[%clk 0:02:37.9]} 9... a6
{[%clk 0:02:55.5]} 10. Ba4 {[%clk 0:02:35.7]} 10... Rd8 {[%clk 0:02:43.9]} 11.
Bc2 {[%clk 0:02:28.9]} 11... Be6 {[%clk 0:02:14.9]} 12. Nc4 {[%clk 0:02:17.3]}
12... Nd7 {[%clk 0:02:08.3]} 13. Ng5 {[%clk 0:02:08.6]} 13... Nf8 {[%clk
0:01:37]} 14. Nxe6 {[%clk 0:02:05.8]} 14... Nxe6 {[%clk 0:01:36.9]} 15. g3
{[%clk 0:01:56.5]} 15... Qf6 {[%clk 0:01:31.2]} 16. Be3 {[%clk 0:01:50.2]} 16...
Bxe3 {[%clk 0:01:26.8]} 17. Nxe3 {[%clk 0:01:49.3]} 17... Ne7 {[%clk 0:01:19.9]}
18. Ng4 {[%clk 0:01:23]} 18... Qh6 {[%clk 0:01:12.2]} 19. Nxe5 {[%clk
0:01:16.7]} 19... Rd2 {[%clk 0:01:04.6]} 20. Qc4 {[%clk 0:00:09.6]} 20... Rxc2
{[%clk 0:01:01.3]} 21. Nxf7 {[%clk 0:00:09.5]} 21... Kxf7 {[%clk 0:00:59.3]} 22.
Rad1 {[%clk 0:00:02.2]} 22... Rd2 {[%clk 0:00:30.6]} 23. Rxd2 {[%clk 0:00:01.8]}
23... Qxd2 {[%clk 0:00:29.5]} 24. f4 {[%clk 0:00:02.7]} 24... b5 {[%clk
0:00:19.9]} 25. Qb3 {[%clk 0:00:02.2]} 25... Qe3+ {[%clk 0:00:19.2]} 26. Rf2
{[%clk 0:00:01.8]} 26... Rd8 {[%clk 0:00:17.3]} 27. f5 {[%clk 0:00:01.6]} 27...
Qxe4 {[%clk 0:00:09.6]} 28. fxe6+ {[%clk 0:00:01.7]} 28... Ke8 {[%clk
0:00:09.4]} 29. Kf1 {[%clk 0:00:01.2]} 29... Rd3 {[%clk 0:00:07.2]} 0-1